bitfinex/quotes_ETHUSD_20251004
["timestamp","ask_amount","ask_price","bid_price","bid_amount"]
[1759589875625,2.69274468,4477.2,4476.9,2.516]
[1759589876125,2.23359692,4477.1,4476.9,2.516]
[1759589876306,2.69279692,4477.1,4476.9,2.516]
[1759589876833,2.23363859,4477.0,4476.9,2.516]
[1759589877325,2.69280324,4477.1,4476.9,2.516]
[1759589877625,2.69480324,4477.1,4476.9,2.516]
[1759589877923,2.23363859,4477.0,4476.9,2.516]
[1759589878108,2.69283859,4477.0,4476.9,2.516]
[1759589878685,2.23368848,4476.9,4476.8,1e-08]
[1759589878884,2.69288848,4476.9,4476.8,2.51600001]
[1759589879194,0.4592,4476.9,4476.8,2.51600001]
[1759589880599,2.69288848,4476.9,4476.8,2.51600001]
[1759589882529,3.18852892,4476.9,4476.8,1e-08]
[1759589882728,3.30052892,4476.9,4476.8,1e-08]
[1759589883588,5.70052892,4476.9,4476.8,1e-08]
[1759589884287,6.80971586,4476.9,4476.8,1e-08]
[1759589885299,7.15034989,4476.9,4476.8,1e-08]
[1759589885530,7.74386501,4476.9,4476.8,1e-08]
[1759589885825,7.26053866,4476.9,4476.8,1e-08]
[1759589886401,7.85256603,4476.9,4476.8,1e-08]
[1759589886792,7.74237726,4476.9,4476.8,1e-08]
[1759589887398,7.14953741,4476.9,4476.8,1e-08]
[1759589887599,12.29092585,4476.9,4476.8,1e-08]
[1759589888229,11.81615139,4476.9,4476.8,1e-08]
[1759589889895,5.58852892,4476.9,4476.8,1e-08]
[1759589890235,8.10452892,4476.9,4476.8,1e-08]
[1759589890931,7.64532892,4476.9,4476.8,1e-08]
[1759589891129,8.10452892,4476.9,4476.8,1e-08]
[1759589894604,13.24591736,4476.9,4476.8,1e-08]
[1759589895539,8.21652892,4476.9,4476.8,1e-08]
[1759589897151,8.85012892,4476.9,4476.8,1e-08]
[1759589897861,8.85212892,4476.9,4476.8,1e-08]
[1759589898042,9.52281898,4476.9,4476.8,1e-08]
[1759589899550,7.00681898,4476.9,4476.8,1e-08]
[1759589899751,9.52381898,4476.9,4476.8,1e-08]
[1759589904855,7.00681898,4476.9,4476.8,1e-08]
[1759589905027,9.52381898,4476.9,4476.8,1e-08]
[1759589905229,7.76032892,4476.9,4476.8,1e-08]
[1759589909948,7.26468848,4476.9,4476.8,1e-08]
[1759589911256,0.114,4476.9,4476.8,1e-08]
[1759589911582,0.114,4476.9,4476.8,0.10300001]
[1759589914586,0.002,4476.9,4476.8,0.10300001]
[1759589918285,0.002,4476.9,4476.8,0.11429783]
[1759589918485,0.002,4476.9,4476.8,0.41579443]
[1759589919477,0.002,4476.9,4476.8,2.64953281]
[1759589919689,0.002,4476.9,4476.8,3.0229032]
[1759589920385,0.002,4476.9,4476.8,0.78916482]
[1759589920570,0.002,4476.9,4476.8,3.00366822]
[1759589920777,0.002,4476.9,4476.8,0.48766822]
[1759589920976,0.002,4476.9,4476.8,17.23100001]
[1759589921150,0.002,4476.9,4476.8,19.46473839]
[1759589921550,0.002,4476.9,4476.8,14.71500001]
[1759589921848,0.002,4476.9,4476.8,1.68650001]
[1759589922056,0.002,4476.9,4476.8,2.62800001]
[1759589922497,0.002,4476.9,4476.8,0.11200001]
[1759589923189,0.002,4476.9,4476.8,2.62800001]
[1759589927391,0.002,4476.9,4476.8,2.74229783]
[1759589928108,0.002,4476.9,4476.8,2.73100001]
[1759589928308,0.002,4476.9,4476.8,2.90110001]
[1759589928706,0.002,4476.9,4476.8,3.00410001]
[1759589930532,0.002,4476.9,4476.8,2.90110001]
[1759589931237,0.002,4476.9,4476.8,2.91239783]
[1759589931909,0.002,4476.9,4476.8,0.39639783]
[1759589932117,0.002,4476.9,4476.8,2.63929783]
[1759589932429,0.002,4476.9,4476.8,0.22629783]
[1759589932591,0.002,4476.9,4476.8,2.74229783]
[1759589933931,0.002,4476.9,4476.8,4.97603621]
[1759589934138,0.002,4476.9,4476.8,0.38466822]
[1759589934292,0.4714,4476.9,4476.8,2.51600001]
[1759589934495,0.4714,4476.9,4476.8,1e-08]
[1759589935005,0.4714,4476.9,4476.8,2.51600001]
[1759589935211,0.4714,4476.9,4476.8,1e-08]
[1759589935811,0.4714,4476.9,4476.8,2.51600001]
[1759589937448,0.4714,4476.9,4476.8,1e-08]
[1759589937598,0.4714,4476.9,4476.8,2.51600001]
[1759589938834,0.4714,4476.9,4476.8,1e-08]
[1759589939029,0.4714,4476.9,4476.8,2.51600001]
[1759589939733,2.97857444,4476.9,4476.8,1e-08]
[1759589940130,0.4714,4476.9,4476.8,1e-08]
[1759589940315,0.4714,4476.9,4476.8,2.51600001]
[1759589940520,2.73300958,4476.9,4476.8,2.51600001]
[1759589940764,2.73300958,4476.9,4476.8,1e-08]
[1759589940765,2.70508848,4476.9,4476.8,1e-08]
[1759589940920,3.22707778,4476.9,4476.8,2.51600001]
[1759589941249,3.22707778,4476.9,4476.8,1e-08]
[1759589942323,5.62707778,4476.9,4476.8,1e-08]
[1759589942556,5.59915668,4476.9,4476.8,1e-08]
[1759589942917,9.88396662,4476.9,4476.8,1e-08]
[1759589944056,5.59915668,4476.9,4476.8,1e-08]
[1759589944354,5.71115668,4476.9,4476.8,1e-08]
[1759589949124,5.82315668,4476.9,4476.8,1e-08]
[1759589955166,8.33915668,4476.9,4476.8,1e-08]
[1759589956191,13.16175668,4476.9,4476.8,1e-08]
[1759589960909,3.0336,4476.8,4476.3,0.001]
[1759589961065,2.23413762,4476.0,4475.9,0.001]
[1759589961271,16.49328422,4476.0,4475.9,0.001]
[1759589961465,17.37177817,4476.0,4475.5,1.21309918]
[1759589961718,2.234537,4475.2,4475.1,0.01]
[1759589961885,9.66894694,4475.2,4475.1,0.01]
[1759589962216,8.96546813,4475.2,4475.1,0.01]
[1759589962368,8.62153347,4475.2,4475.1,0.01]
[1759589962567,12.90634341,4475.2,4475.1,0.01]
[1759589962795,13.33974341,4475.2,4475.1,0.01]
[1759589963292,12.70614341,4475.2,4475.1,0.01]
[1759589963633,8.42133347,4475.2,4475.1,0.01]
[1759589963792,7.98793347,4475.2,4475.1,0.01]
[1759589964194,5.35993347,4475.2,4475.1,0.01]
[1759589964420,8.22086813,4475.2,4475.1,0.01]
[1759589964594,5.64239107,4475.2,4475.1,0.01]
[1759589964793,7.87692807,4475.2,4475.1,0.01]
[1759589965006,12.59513801,4475.2,4475.1,0.01]
[1759589965831,12.59513801,4475.2,4473.7,0.105]
[1759589966035,12.59513801,4475.2,4472.2,0.6336]
[1759589966036,4.63498647,4474.3,4472.2,0.6336]
[1759589966234,2.26297438,4474.2,4473.4,0.105]
[1759589966734,0.02793795,4474.2,4474.1,0.115]
[1759589966925,2.23495425,4474.4,4474.1,0.115]
[1759589967235,0.02793733,4474.3,4472.8,0.6336]
[1759589967405,0.02793733,4474.3,4473.2,2.517]
[1759589967755,2.42793733,4474.3,4473.2,2.517]
[1759589967908,2.26293273,4474.3,4473.2,2.517]
[1759589968238,2.23503643,4474.2,4474.1,0.001]
[1759589968443,0.0279367,4474.4,4474.1,0.001]
[1759589968600,2.23500489,4474.3,4472.8,2.8303216]
[1759589968798,2.26297714,4474.2,4473.6,0.001]
[1759589969001,0.02793795,4474.2,4473.6,0.001]
[1759589969310,0.02793545,4474.6,4473.7,0.065]
[1759589969527,2.2351834,4474.0,4473.6,0.001]
[1759589969842,0.02793982,4473.9,4473.6,0.001]
[1759589970231,2.26313436,4473.9,4473.6,0.001]
[1759589970765,0.02793982,4473.9,4473.6,0.001]
[1759589970970,0.02794045,4473.8,4473.6,0.001]
[1759589971281,2.26296203,4474.3,4473.6,0.066]
[1759589971451,2.23504801,4474.2,4473.6,0.066]
[1759589971773,0.02793857,4474.1,4473.6,0.066]
[1759589973226,0.02793857,4474.1,4473.6,0.001]
[1759589973459,2.26303609,4474.1,4473.6,0.001]
[1759589973641,0.02793857,4474.1,4473.6,0.001]
[1759589974181,2.26304721,4474.1,4473.6,0.001]
[1759589974645,0.112,4473.7,4473.6,0.001]
[1759589975935,0.13994107,4473.7,4473.6,0.001]
[1759589976835,0.112,4473.7,4473.6,0.001]
[1759589978092,2.80832219,4473.7,4473.6,0.001]
[1759589978236,5.09128622,4473.7,4473.6,0.001]
[1759589978958,4.63528622,4473.7,4473.6,0.001]
[1759589979294,5.09128622,4473.7,4473.6,0.001]
[1759589979993,4.63528622,4473.7,4473.6,0.001]
[1759589980139,5.09128622,4473.7,4473.6,0.001]
[1759589980339,5.82393476,4473.7,4473.6,0.001]
[1759589981681,5.36793476,4473.7,4473.6,0.001]
[1759589981849,4.63528622,4473.7,4473.6,0.001]
[1759589982277,5.09128622,4473.7,4473.6,0.001]
[1759589985150,12.75782535,4473.7,4473.6,0.001]
[1759589985577,7.60928622,4473.7,4473.6,0.001]
[1759589985813,9.10858867,4473.7,4473.6,0.001]
[1759589987183,9.77978441,4473.7,4473.6,0.001]
[1759589987608,9.78178441,4473.7,4473.6,0.001]
[1759589987824,15.56392354,4473.7,4473.6,0.001]
[1759589988314,15.67592354,4473.7,4473.6,0.001]
[1759589989306,15.69992354,4473.7,4473.6,0.001]
[1759589989510,7.87264161,4473.7,4473.6,0.001]
[1759589989728,9.46178441,4473.7,4473.6,0.001]
[1759589989930,9.24658867,4473.7,4473.6,0.001]
[1759589990285,2.235736,4472.8,4472.7,1.29235537]
[1759589990514,7.6419827,4472.8,4472.7,1.29235537]
[1759589990730,12.76257513,4472.8,4472.7,1.29235537]
[1759589990931,13.86914014,4472.8,4472.7,1.29235537]
[1759589991086,14.5404996,4472.8,4472.7,1.29235537]
[1759589991286,16.03980205,4472.8,4472.7,1.29235537]
[1759589992422,0.6336,4472.6,4472.1,0.01]
[1759589992624,10.41817508,4472.2,4472.1,0.01]
[1759589992821,13.95151657,4472.2,4472.1,0.01]
[1759589993037,14.41181657,4472.2,4472.1,0.01]
[1759589993587,14.41181657,4472.2,4472.1,1e-08]
[1759589994212,9.26327744,4472.2,4472.1,1e-08]
[1759589994415,14.501351,4472.2,4472.1,1e-08]
[1759589995933,14.9414483,4472.2,4472.1,1e-08]
[1759589998719,5.70804416,4472.2,4472.1,1e-08]
[1759589999037,8.22604416,4472.2,4472.1,1e-08]
[1759589999201,8.85964416,4472.2,4472.1,1e-08]
[1759589999399,2.86794686,4472.2,4472.1,1e-08]
[1759589999740,4.87152082,4472.2,4472.1,1e-08]
[1759589999941,4.84357038,4472.2,4472.1,1e-08]
[1759590000232,7.35557038,4472.2,4472.1,1e-08]
[1759590000650,12.96440951,4472.2,4472.1,1e-08]
[1759590001259,0.08953443,4472.2,4472.1,1e-08]
[1759590001437,1.915,4472.5,4472.1,0.06600001]
[1759590001778,4.85540218,4472.4,4472.2,0.066]
[1759590001938,4.919,4472.3,4472.2,0.066]
[1759590002133,2.4,4472.3,4472.1,1e-08]
[1759590002340,0.02795044,4472.2,4472.1,1e-08]
[1759590002970,0.02795044,4472.2,4472.1,0.06600001]
[1759590003339,0.02794982,4472.3,4472.1,0.06600001]
[1759590003640,0.02794982,4472.3,4472.1,1e-08]
[1759590004045,0.02794982,4472.3,4472.2,0.066]
[1759590004241,0.02794982,4472.3,4472.1,1e-08]
[1759590004482,0.02794982,4472.3,4472.2,0.066]
[1759590004778,4.63603595,4472.2,4472.1,1e-08]
[1759590006435,4.63603595,4472.2,4472.1,0.00100001]
[1759590007779,5.09633595,4472.2,4472.1,0.00100001]
[1759590009857,5.72993595,4472.2,4472.1,0.00100001]
[1759590011001,6.20175841,4472.2,4472.1,0.00100001]
[1759590011185,7.84551316,4472.2,4472.1,0.00100001]
[1759590011374,7.95751316,4472.2,4472.1,0.00100001]
[1759590014399,13.10605229,4472.2,4472.1,0.00100001]
[1759590014988,15.62505229,4472.2,4472.1,0.00100001]
[1759590016821,2.86988597,4471.7,4471.6,0.001]
[1759590016990,13.07737867,4471.7,4471.6,0.001]
[1759590017180,13.98154756,4471.7,4471.6,0.001]
[1759590017597,13.5097251,4471.7,4471.6,0.001]
[1759590018129,13.98275293,4471.7,4471.6,0.001]
[1759590018297,10.36596855,4471.7,4471.6,0.001]
[1759590018500,15.51450768,4471.7,4471.6,0.001]
[1759590018804,16.3088874,4471.7,4471.6,0.001]
[1759590019013,15.52050768,4471.7,4471.6,0.001]
[1759590019319,16.3088874,4471.7,4471.6,0.001]
[1759590019522,15.52050768,4471.7,4471.6,0.001]
[1759590019696,16.3088874,4471.7,4471.6,0.001]
[1759590020224,15.52050768,4471.7,4471.6,0.001]
[1759590020540,12.99550768,4471.7,4471.6,0.001]
[1759590020734,15.52050768,4471.7,4471.6,0.001]
[1759590021089,10.32977604,4471.7,4471.6,0.001]
[1759590021410,9.73836855,4471.7,4471.6,0.001]
[1759590021611,10.37196855,4471.7,4471.6,0.001]
[1759590022327,2.87013605,4471.2,4471.1,0.01]
[1759590022527,2.87028612,4470.9,4470.8,0.00083027]
[1759590022826,7.82424469,4470.9,4470.8,0.00083027]
[1759590023035,8.94105524,4470.9,4470.8,0.00083027]
[1759590023189,11.02157561,4470.9,4470.8,0.00083027]
[1759590023389,11.6125533,4470.9,4470.8,0.00083027]
[1759590023731,11.02157561,4470.9,4470.8,0.00083027]
[1759590024232,11.61182855,4470.9,4470.8,0.00083027]
[1759590024907,12.11182855,4470.9,4470.8,0.00083027]
[1759590025104,12.11156004,4470.9,4470.8,0.00083027]
[1759590025297,11.52157561,4470.9,4470.8,0.00083027]
[1759590026202,11.52157561,4470.9,4470.8,0.00183027]
[1759590026797,10.44007561,4470.9,4470.8,0.00183027]
[1759590027196,7.56704778,4470.9,4470.8,0.00183027]
[1759590027392,9.46704778,4470.9,4470.8,0.00183027]
[1759590027598,4.54104778,4470.9,4470.8,0.00183027]
[1759590027795,5.43442741,4470.9,4470.8,0.00183027]
[1759590028146,2.4,4470.8,4470.1,0.01]
[1759590028443,5.38263637,4470.2,4470.1,1e-08]
[1759590028605,9.65815906,4470.2,4470.1,1e-08]
[1759590028799,10.10605906,4470.2,4470.1,1e-08]
[1759590029101,9.02455906,4470.2,4470.1,1e-08]
[1759590029528,9.22463747,4470.2,4470.1,1e-08]
[1759590030210,6.69763747,4470.2,4470.1,1e-08]
[1759590030415,9.67280525,4470.2,4470.1,1e-08]
[1759590030820,9.22463747,4470.2,4470.1,1e-08]
[1759590032313,7.94782129,4470.2,4470.1,1e-08]
[1759590033736,8.30672129,4470.2,4470.1,1e-08]
[1759590033936,8.77805934,4470.2,4470.1,1e-08]
[1759590034340,13.07876288,4470.2,4470.1,1e-08]
[1759590035252,2.87073646,4470.0,4469.9,1e-08]
[1759590035550,7.542359,4470.0,4469.9,1e-08]
[1759590035744,7.9852948,4470.0,4469.9,1e-08]
[1759590036306,12.28599834,4470.0,4469.9,1e-08]
[1759590037332,13.70849834,4470.0,4469.9,1e-08]
[1759590037534,8.93645675,4470.0,4469.9,1e-08]
[1759590037845,13.23716029,4470.0,4469.9,1e-08]
[1759590038072,8.93645675,4470.0,4469.9,1e-08]
[1759590038737,6.69932029,4470.0,4469.9,1e-08]
[1759590038937,0.67178492,4470.2,4469.9,1e-08]
[1759590039271,2.55496358,4470.1,4469.9,0.06600001]
[1759590039474,2.55496358,4470.1,4470.0,0.066]
[1759590039475,0.02796358,4470.1,4470.0,0.066]
[1759590039776,2.55496358,4470.1,4470.0,0.066]
[1759590040361,0.02796358,4470.1,4470.0,0.066]
[1759590040572,0.46,4470.6,4470.0,0.066]
[1759590040882,0.02796107,4470.5,4470.0,0.066]
[1759590041291,0.002,4471.1,4470.1,0.07738053]
[1759590041581,0.02795294,4471.8,4470.5,2.23687931]
[1759590041751,0.02795294,4471.8,4470.6,0.29905822]
[1759590042081,0.02795294,4471.8,4469.9,1e-08]
[1759590042082,0.46,4471.7,4470.7,0.064]
[1759590042284,0.02795419,4471.6,4470.7,0.064]
[1759590042787,0.02795294,4471.8,4470.8,0.01137181]
[1759590042948,0.02795294,4471.8,4470.9,0.064]
[1759590043267,0.02795294,4471.8,4471.0,0.01136728]
[1759590043465,0.02795294,4471.8,4471.1,0.064]
[1759590043670,0.112,4471.5,4471.2,0.01136577]
[1759590043851,0.112,4471.5,4471.3,0.064]
[1759590044053,0.112,4471.5,4471.4,0.064]
[1759590044570,0.01,4471.9,4470.8,0.064]
[1759590045045,0.002,4471.8,4470.8,0.064]
[1759590046267,0.02795357,4471.7,4470.8,0.54698814]
[1759590046469,0.02795357,4471.7,4470.9,0.064]
[1759590047175,0.02995294,4471.8,4471.0,2.24799479]
[1759590047387,0.002,4471.8,4470.9,0.064]
[1759590047584,0.002,4471.8,4471.0,0.01136728]
[1759590047769,0.002,4471.8,4471.1,0.064]
[1759590047945,0.002,4471.8,4471.7,2.23628597]
[1759590048145,0.002,4471.8,4471.7,4.76528597]
[1759590048489,0.002,4472.7,4471.7,2.593]
[1759590048641,0.002,4472.7,4471.8,4.01087277]
[1759590048845,0.002,4472.7,4472.6,2.23583597]
[1759590049375,0.026,4473.7,4472.7,0.6336]
[1759590049577,0.01,4474.9,4472.9,3.0336]
[1759590049777,0.01,4474.9,4473.8,2.23523626]
[1759590049975,0.01,4474.9,4473.8,2.24654942]
[1759590050270,0.01,4474.9,4474.1,2.23504657]
[1759590050510,0.01,4474.9,4474.2,2.24636136]
[1759590050714,0.01,4474.9,4474.0,0.038]
[1759590050899,0.01,4474.9,4474.1,3.9848]
[1759590051103,0.01,4474.9,4474.1,2.531]
[1759590051300,0.01,4474.9,4474.2,0.038]
[1759590051701,0.01,4474.9,4474.7,2.23477738]
[1759590051885,0.01,4474.9,4474.8,0.04932328]
[1759590052286,0.01,4474.9,4474.8,2.57932328]
[1759590052486,0.01,4474.9,4474.8,5.07199235]
[1759590052686,0.002,4475.5,4475.0,2.2345991]
[1759590052902,0.002,4475.5,4475.3,2.23448623]
[1759590053142,0.002,4475.5,4475.1,0.01131804]
[1759590053143,0.002,4475.5,4475.4,2.24575293]
[1759590053302,0.002,4475.5,4475.4,2.28375293]
[1759590053511,0.002,4475.5,4475.4,2.73558097]
[1759590053825,0.002,4476.0,4475.6,2.23432102]
[1759590054030,0.002,4476.0,4475.8,2.23423745]
[1759590054184,0.002,4476.0,4475.7,2.568]
[1759590054386,0.002,4476.0,4475.8,0.038]
[1759590054686,0.002,4476.0,4475.8,2.86447092]
[1759590054918,0.002,4476.0,4475.8,5.39447092]
[1759590056137,0.002,4476.4,4475.8,5.39447092]
[1759590056138,0.002,4476.4,4476.3,2.86758789]
[1759590056600,0.002,4476.4,4476.3,0.038]
[1759590056797,0.002,4476.4,4476.3,3.1656]
[1759590057038,0.002,4476.4,4476.3,2.84856]
[1759590057422,0.002,4476.4,4476.3,5.12054789]
[1759590057626,0.002,4476.4,4476.3,5.75414789]
[1759590058066,0.002,4476.4,4476.3,3.52016]
[1759590058269,0.002,4476.4,4476.3,5.70374789]
[1759590058428,0.002,4476.4,4476.3,3.46976]
[1759590058765,0.002,4476.4,4476.3,2.531]
[1759590059444,0.002,4476.4,4476.3,5.43658789]
[1759590059829,0.012,4476.9,4476.8,0.6336]
[1759590060062,0.012,4476.9,4476.8,2.86733838]
[1759590060264,0.012,4476.9,4476.5,0.038]
[1759590060448,0.012,4476.9,4476.8,2.531]
[1759590061137,0.012,4476.9,4476.8,5.43633838]
[1759590061348,0.002,4477.3,4477.0,2.23363859]
[1759590061524,0.002,4477.3,4477.0,2.87853392]
[1759590061731,0.002,4477.3,4477.0,3.68466115]
[1759590062227,0.002,4477.3,4477.2,2.86713881]
[1759590062485,0.002,4477.3,4477.2,2.87843164]
[1759590062644,0.002,4477.3,4477.2,2.91643164]
[1759590063198,0.002,4477.3,4477.2,3.1656]
[1759590063468,0.002,4477.3,4476.2,2.4]
[1759590063665,0.002,4477.3,4476.5,2.2338683]
[1759590063829,0.002,4477.3,4476.3,1.69]
[1759590064166,0.002,4477.3,4476.4,2.532]
[1759590064340,0.002,4477.3,4476.5,0.01129858]
[1759590064540,0.002,4477.3,4476.8,0.6336]
[1759590064541,0.002,4476.9,4476.8,0.6336]
[1759590064785,0.002,4476.9,4476.8,3.1656]
[1759590064933,0.002,4476.9,4476.8,5.75389838]
[1759590065135,0.002,4477.3,4477.2,2.86713881]
[1759590065641,0.002,4477.3,4477.2,5.43713881]
[1759590066158,0.002,4477.3,4477.2,5.54913881]
[1759590066374,0.002,4477.4,4477.3,2.23348893]
[1759590066544,0.002,4477.4,4477.3,2.27148893]
[1759590066878,0.002,4477.4,4477.3,4.80348893]
[1759590067877,0.002,4477.6,4477.3,4.80348893]
[1759590067878,0.002,4477.6,4477.3,5.43708893]
[1759590068031,0.002,4477.6,4477.5,2.86698916]
[1759590068226,0.002,4477.6,4477.5,2.97898916]
[1759590068845,0.012,4477.9,4477.6,0.6336]
[1759590069034,0.012,4477.9,4477.8,2.86683953]
[1759590069443,0.012,4477.9,4477.8,3.01683953]
[1759590069987,0.01,4479.9,4478.3,0.6336]
[1759590070134,0.112,4479.5,4478.3,5.40886931]
[1759590070328,0.112,4479.5,4478.8,2.86634091]
[1759590070531,0.4317,4479.7,4478.8,5.5206138]
[1759590070733,0.4317,4479.7,4478.8,5.50934091]
[1759590070975,0.01,4479.9,4478.8,5.50934091]
[1759590071198,0.01,4479.9,4478.8,5.54734091]
[1759590071702,0.01,4479.9,4478.8,5.50934091]
[1759590071837,0.4317,4479.3,4478.8,0.88621795]
[1759590072178,0.4317,4479.3,4478.8,4.87574091]
[1759590072366,0.0379024,4479.9,4478.8,5.50934091]
[1759590072367,0.01,4479.9,4478.8,5.50934091]
[1759590072562,0.112,4479.7,4478.8,5.50934091]
[1759590072876,0.01,4479.9,4478.9,32.86629106]
[1759590073179,0.4317,4480.7,4479.2,0.6336]
[1759590073352,0.4317,4480.7,4479.6,0.6336]
[1759590073686,0.45959804,4480.6,4478.5,0.36116845]
[1759590073840,0.45959804,4480.6,4478.2,0.33756051]
[1759590073841,0.02789867,4480.5,4478.8,2.4]
[1759590074185,0.4317,4480.4,4478.9,3.2422311]
[1759590074369,0.45959991,4480.3,4479.2,0.6336]
[1759590074689,0.4317,4480.2,4478.6,2.23279459]
[1759590074979,0.45960116,4480.1,4478.7,2.75327946]
[1759590075155,0.45960116,4480.1,4478.8,2.53]
[1759590075156,2.8317,4480.0,4478.8,2.53]
[1759590075472,2.8317,4480.0,4478.2,2.59420099]
[1759590075473,0.4596024,4479.9,4478.9,2.53]
[1759590075684,0.4317,4479.9,4479.0,2.53]
[1759590075928,2.23238931,4479.6,4478.1,0.01]
[1759590076083,0.45960303,4479.8,4478.1,0.01]
[1759590076084,0.0279049,4479.5,4478.2,2.377]
[1759590076289,0.4317,4479.4,4478.2,2.377]
[1759590076513,0.45960614,4479.3,4478.2,2.377]
[1759590076720,0.012,4480.9,4479.3,4.275963]
[1759590076920,0.012,4480.9,4479.5,3.0336]
[1759590077123,0.012,4480.9,4480.3,2.23197782]
[1759590077328,0.012,4480.9,4480.4,2.55231943]
[1759590077494,0.012,4480.9,4480.5,2.53]
[1759590077698,0.012,4480.9,4480.6,0.02231843]
[1759590078011,0.012,4480.9,4478.9,0.038]
[1759590078323,0.4317,4480.8,4480.1,0.6336]
[1759590078524,0.4317,4480.8,4480.2,0.039]
[1759590078882,0.4317,4480.8,4480.3,0.02231993]
[1759590079297,0.4317,4480.7,4480.4,2.529]
[1759590079558,0.012,4480.9,4480.5,2.529]
[1759590079758,0.4317,4480.6,4479.6,0.6336]
[1759590079959,0.4317,4480.6,4479.8,0.6336]
[1759590080332,0.4317,4480.6,4479.0,2.23262522]
[1759590080531,0.45033899,4480.5,4479.3,2.23248876]
[1759590080752,0.45033899,4480.5,4479.1,2.529]
[1759590080943,0.01663899,4480.5,4479.2,2.529]
[1759590081257,0.01663899,4480.5,4478.6,2.438]
[1759590081258,0.4337,4480.4,4479.3,2.23247755]
[1759590081444,0.012,4480.9,4479.7,2.23224977]
[1759590081445,0.02863899,4480.9,4479.7,2.23224977]
[1759590081645,0.02863899,4480.9,4479.8,4.78355854]
[1759590081646,0.4337,4480.8,4479.8,4.78355854]
[1759590081847,0.4337,4480.8,4479.8,2.529]
[1759590082045,0.012,4480.9,4479.9,0.6336]
[1759590082563,0.012,4480.9,4480.6,2.23183075]
[1759590082862,0.012,4480.9,4480.8,2.97654433]
[1759590083726,0.012,4480.9,4480.8,3.01454433]
[1759590084123,0.002,4481.4,4480.8,0.80511744]
[1759590084365,0.002,4481.4,4481.3,2.86509532]
[1759590084537,0.002,4481.4,4481.3,5.52761027]
[1759590084865,0.002,4481.4,4481.3,3.2738]
[1759590085172,0.002,4481.4,4481.3,0.1112]
[1759590085327,0.002,4481.4,4481.3,2.6402]
[1759590086320,0.002,4481.4,4481.3,2.66251495]
[1759590087384,0.002,4481.4,4481.3,0.1112]
[1759590087539,0.5469,4481.4,4481.3,0.405]
[1759590087738,0.5469,4481.4,4481.3,0.49]
[1759590088294,2.77834553,4481.4,4481.3,0.49]
[1759590088444,2.23160855,4481.1,4479.6,2.23232044]
[1759590088643,0.1112,4480.7,4480.0,0.112]
[1759590088955,0.5449,4480.7,4480.0,0.112]
[1759590089276,0.5449,4480.7,4480.1,2.528]
[1759590089637,0.5449,4480.7,4480.2,2.528]
[1759590089966,0.48073899,4480.6,4479.2,2.23249383]
[1759590090284,0.48073899,4480.6,4479.7,0.112]
[1759590090285,0.1112,4480.4,4479.7,0.112]
[1759590090583,0.01663899,4481.1,4479.8,0.02232242]
[1759590090742,0.01663899,4481.1,4479.9,2.528]
[1759590090743,0.1112,4480.6,4479.9,2.528]
[1759590090946,0.1112,4480.6,4480.0,0.02232142]
[1759590091654,0.002,4481.4,4480.0,0.65592142]
[1759590091984,0.4641,4481.3,4480.1,2.528]
[1759590092279,0.48073899,4481.2,4479.6,0.6336]
[1759590092470,0.48073899,4481.2,4479.9,0.6336]
[1759590092650,0.48073899,4481.2,4480.1,0.6336]
[1759590093056,0.48073899,4481.2,4480.2,2.527]
[1759590093257,2.88073899,4481.2,4480.2,2.527]
[1759590093589,0.48073899,4481.2,4480.1,2.23208317]
[1759590093796,0.4641,4481.2,4480.2,4.78135385]
[1759590094003,0.4641,4481.2,4480.3,2.527]
[1759590094300,0.4641,4481.1,4479.5,0.6336]
[1759590094442,0.4641,4481.0,4479.7,0.6336]
[1759590094695,0.4641,4481.0,4479.8,0.02232242]
[1759590094937,2.402,4481.4,4480.0,0.6336]
[1759590095232,0.4641,4481.3,4480.0,0.6336]
[1759590095535,0.4641,4481.3,4480.3,0.6336]
[1759590095696,0.4641,4481.3,4480.4,2.23193912]
[1759590095901,0.4641,4481.3,4480.4,2.25425855]
[1759590096234,0.002,4481.4,4480.4,0.65591943]
[1759590096410,0.002,4481.4,4480.6,2.23180476]
[1759590096614,0.002,4481.4,4480.7,2.54931794]
[1759590097438,0.002,4481.4,4480.8,2.23173497]
[1759590097641,0.002,4481.4,4480.9,0.02231694]
[1759590098104,0.002,4481.4,4481.0,2.527]
[1759590098311,0.002,4481.4,4481.1,0.02231594]
[1759590098653,0.002,4481.4,4481.3,2.86509532]
[1759590098835,0.002,4481.8,4481.7,2.23129615]
[1759590099153,0.002,4481.8,4481.7,5.41520911]
[1759590099316,0.002,4481.8,4481.7,5.43089615]
[1759590099814,0.002,4482.1,4482.0,2.8647468]
[1759590100028,0.002,4482.1,4482.0,2.88705826]
[1759590100231,0.002,4482.1,4482.0,2.92505826]
[1759590100626,0.002,4482.3,4482.2,2.86464725]
[1759590100851,0.002,4482.3,4482.2,5.41595772]
[1759590101147,0.01,4483.9,4482.5,2.86449793]
[1759590101349,0.4741,4483.9,4482.5,2.8868069]
[1759590101551,0.4741,4483.9,4482.5,2.86449793]
[1759590101750,0.4741,4483.9,4482.5,2.97569793]
[1759590102257,0.4741,4483.9,4482.5,0.7448]
[1759590102258,0.01,4483.9,4482.5,0.7448]
[1759590102416,0.4641,4483.3,4482.5,3.2738]
[1759590103370,0.01,4483.9,4482.5,0.1112]
[1759590103669,0.4661,4482.6,4482.5,2.528]
[1759590103874,0.4661,4482.6,4480.9,0.34025179]
[1759590104024,0.4661,4482.6,4481.0,2.528]
[1759590104227,0.4641,4482.5,4481.0,2.528]